[Event "Titled Tuesday Blitz January 10 Early 2023"]
[White "Rodriguez Fontecha, Marcos"]
[Black "Shipov, Sergei"]
[WhiteFideId "2256576"]
[BlackFideId "4113624"]
[WhiteElo "2309"]
[BlackElo "2541"]
[Result "0-1"]
[Round "03"]
[TimeControl "180+2"]
[Date "2023.01.10"]
[WhiteClock "0:00:03"]
[BlackClock "0:00:07"]

1. Nf3 {[%clk 0:03:00]}  d5 {[%clk 0:02:59]} 2. d4 {[%clk 0:02:59]}  e6 {[%clk 0:02:59]} 3. Bf4 {[%clk 0:02:59]}  Nf6 {[%clk 0:02:55]} 4. e3 {[%clk 0:02:59]}  c5 {[%clk 0:02:55]} 5. c3 {[%clk 0:02:58]}  Nc6 {[%clk 0:02:55]} 6. Nbd2 {[%clk 0:02:58]}  Nh5 {[%clk 0:02:55]} 7. Bg5 {[%clk 0:02:58]}  f6 {[%clk 0:02:55]} 8. Bh4 {[%clk 0:02:58]}  g6 {[%clk 0:02:56]} 9. e4 {[%clk 0:02:49]}  cxd4 {[%clk 0:02:50]} 10. exd5 {[%clk 0:02:42]}  dxc3 {[%clk 0:02:13]} 11. dxc6 {[%clk 0:02:27]}  cxd2+ {[%clk 0:02:13]} 12. Qxd2 {[%clk 0:02:10]}  Qxd2+ {[%clk 0:02:08]} 13. Nxd2 {[%clk 0:02:10]}  g5 {[%clk 0:01:54]} 14. cxb7 {[%clk 0:02:04]}  Bxb7 {[%clk 0:01:54]} 15. Bg3 {[%clk 0:02:02]}  Bb4 {[%clk 0:01:33]} 16. a3 {[%clk 0:01:59]}  Bxd2+ {[%clk 0:01:33]} 17. Kxd2 {[%clk 0:02:00]}  Rd8+ {[%clk 0:01:32]} 18. Kc3 {[%clk 0:01:46]}  O-O {[%clk 0:01:22]} 19. Re1 {[%clk 0:01:39]}  Rc8+ {[%clk 0:01:16]} 20. Kb4 {[%clk 0:01:38]}  Bd5 {[%clk 0:01:00]} 21. Ba6 {[%clk 0:01:24]}  Nxg3 {[%clk 0:00:54]} 22. hxg3 {[%clk 0:01:06]}  Rc2 {[%clk 0:00:47]} 23. Bd3 {[%clk 0:00:24]}  Rxb2+ {[%clk 0:00:31]} 24. Kc5 {[%clk 0:00:20]}  Rf7 {[%clk 0:00:23]} 25. Rb1 {[%clk 0:00:19]}  Rxb1 {[%clk 0:00:17]} 26. Rxb1 {[%clk 0:00:17]}  Bxg2 {[%clk 0:00:17]} 27. Kd6 {[%clk 0:00:16]}  Bd5 {[%clk 0:00:16]} 28. f4 {[%clk 0:00:13]}  gxf4 {[%clk 0:00:15]} 29. gxf4 {[%clk 0:00:14]}  h5 {[%clk 0:00:14]} 30. f5 {[%clk 0:00:14]}  Rb7 {[%clk 0:00:07]} 31. Rg1+ {[%clk 0:00:13]}  Kf8 {[%clk 0:00:06]} 32. fxe6 {[%clk 0:00:13]}  Bb3 {[%clk 0:00:06]} 33. Bg6 {[%clk 0:00:08]}  Rb6+ {[%clk 0:00:06]} 34. Kc7 {[%clk 0:00:06]}  Bxe6 {[%clk 0:00:06]} 35. Bxh5 {[%clk 0:00:06]}  Ra6 {[%clk 0:00:05]} 36. Rg3 {[%clk 0:00:05]}  Ra5 {[%clk 0:00:05]} 37. Be2 {[%clk 0:00:04]}  Kf7 {[%clk 0:00:04]} 38. Re3 {[%clk 0:00:05]}  Rc5+ {[%clk 0:00:04]} 39. Kb7 {[%clk 0:00:04]}  Ra5 {[%clk 0:00:04]} 40. Bf3 {[%clk 0:00:03]}  f5 {[%clk 0:00:04]} 41. Bc6 {[%clk 0:00:03]}  Kf6 {[%clk 0:00:04]} 42. Rh3 {[%clk 0:00:02]}  f4 {[%clk 0:00:04]} 43. Rh6+ {[%clk 0:00:03]}  Ke7 {[%clk 0:00:04]} 44. Rh7+ {[%clk 0:00:03]}  Kd6 {[%clk 0:00:04]} 45. Be8 {[%clk 0:00:03]}  Rxa3 {[%clk 0:00:04]} 46. Rh6 {[%clk 0:00:03]}  Ke5 {[%clk 0:00:04]} 47. Rh5+ {[%clk 0:00:03]}  Kd4 {[%clk 0:00:04]} 48. Rh4 {[%clk 0:00:03]}  Ke3 {[%clk 0:00:04]} 49. Rh6 {[%clk 0:00:04]}  Bd5+ {[%clk 0:00:04]} 50. Kc7 {[%clk 0:00:03]}  f3 {[%clk 0:00:05]} 51. Bh5 {[%clk 0:00:03]}  Rc3+ {[%clk 0:00:04]} 52. Kd6 {[%clk 0:00:02]}  Be4 {[%clk 0:00:05]} 53. Re6 {[%clk 0:00:02]}  Rc6+ {[%clk 0:00:05]} 54. Kd7 {[%clk 0:00:02]}  Rxe6 {[%clk 0:00:06]} 55. Kxe6 {[%clk 0:00:03]}  f2 {[%clk 0:00:07]} 0-1


[Site "https://www.chess.com"]

[Event "Titled Tuesday Blitz January 10 Early 2023"]
[White "Bartel, Mateusz"]
[Black "Soham Kamotra"]
[WhiteFideId "1112635"]
[BlackFideId "46647490"]
[WhiteElo "2609"]
[BlackElo "2319"]
[Result "1-0"]
[Round "03"]
[TimeControl "180+2"]
[Date "2023.01.10"]
[WhiteClock "0:00:08"]
[BlackClock "0:00:02"]

1. Nf3 {[%clk 0:03:00]}  Nf6 {[%clk 0:02:50]} 2. c4 {[%clk 0:02:59]}  b6 {[%clk 0:02:49]} 3. g3 {[%clk 0:02:57]}  Bb7 {[%clk 0:02:50]} 4. Bg2 {[%clk 0:02:57]}  e6 {[%clk 0:02:49]} 5. b3 {[%clk 0:02:57]}  Be7 {[%clk 0:02:47]} 6. Bb2 {[%clk 0:02:58]}  O-O {[%clk 0:02:48]} 7. O-O {[%clk 0:02:51]}  d5 {[%clk 0:02:45]} 8. cxd5 {[%clk 0:02:50]}  exd5 {[%clk 0:02:39]} 9. e3 {[%clk 0:02:48]}  c5 {[%clk 0:02:35]} 10. Nc3 {[%clk 0:02:49]}  Re8 {[%clk 0:02:27]} 11. Ne2 {[%clk 0:02:48]}  Nbd7 {[%clk 0:02:22]} 12. Nf4 {[%clk 0:02:47]}  Nf8 {[%clk 0:02:22]} 13. d4 {[%clk 0:02:44]}  Ne6 {[%clk 0:02:19]} 14. Nxe6 {[%clk 0:02:43]}  fxe6 {[%clk 0:02:18]} 15. Rc1 {[%clk 0:02:42]}  Bd6 {[%clk 0:02:08]} 16. Qd3 {[%clk 0:02:35]}  Qe7 {[%clk 0:02:03]} 17. Rfd1 {[%clk 0:02:35]}  Rf8 {[%clk 0:01:52]} 18. dxc5 {[%clk 0:02:13]}  bxc5 {[%clk 0:01:49]} 19. Nd2 {[%clk 0:02:13]}  Ng4 {[%clk 0:01:37]} 20. f4 {[%clk 0:02:13]}  a5 {[%clk 0:01:15]} 21. Ne4 {[%clk 0:02:09]}  Ba6 {[%clk 0:01:02]} 22. Qd2 {[%clk 0:02:06]}  Rac8 {[%clk 0:00:19]} 23. Nxd6 {[%clk 0:01:54]}  Qxd6 {[%clk 0:00:20]} 24. h3 {[%clk 0:01:54]}  Nf6 {[%clk 0:00:19]} 25. Qxa5 {[%clk 0:01:55]}  Bb7 {[%clk 0:00:16]} 26. e4 {[%clk 0:01:41]}  Ra8 {[%clk 0:00:06]} 27. Qxc5 {[%clk 0:01:19]}  Qxc5+ {[%clk 0:00:07]} 28. Rxc5 {[%clk 0:01:19]}  Rxa2 {[%clk 0:00:08]} 29. Bxf6 {[%clk 0:01:19]}  Rxf6 {[%clk 0:00:08]} 30. exd5 {[%clk 0:01:18]}  Bxd5 {[%clk 0:00:08]} 31. Bxd5 {[%clk 0:01:13]}  exd5 {[%clk 0:00:09]} 32. Rcxd5 {[%clk 0:01:13]}  Rb6 {[%clk 0:00:07]} 33. Rd8+ {[%clk 0:01:04]}  Kf7 {[%clk 0:00:07]} 34. R1d7+ {[%clk 0:01:04]}  Kf6 {[%clk 0:00:07]} 35. Rd6+ {[%clk 0:01:04]}  Rxd6 {[%clk 0:00:06]} 36. Rxd6+ {[%clk 0:01:05]}  Kf5 {[%clk 0:00:07]} 37. Rd5+ {[%clk 0:01:01]}  Ke4 {[%clk 0:00:07]} 38. Re5+ {[%clk 0:01:02]}  Kf3 {[%clk 0:00:08]} 39. h4 {[%clk 0:00:40]}  g6 {[%clk 0:00:03]} 40. Rg5 {[%clk 0:00:36]}  Rb2 {[%clk 0:00:02]} 41. h5 {[%clk 0:00:36]}  gxh5 {[%clk 0:00:03]} 42. f5 {[%clk 0:00:33]}  Rxb3 {[%clk 0:00:03]} 43. f6 {[%clk 0:00:33]}  Rb8 {[%clk 0:00:04]} 44. f7 {[%clk 0:00:31]}  Rf8 {[%clk 0:00:04]} 45. Rg7 {[%clk 0:00:32]}  h4 {[%clk 0:00:04]} 46. g4 {[%clk 0:00:14]}  h6 {[%clk 0:00:03]} 47. Kh2 {[%clk 0:00:14]}  Kf4 {[%clk 0:00:02]} 48. Kh3 {[%clk 0:00:14]}  Ke5 {[%clk 0:00:03]} 49. Kxh4 {[%clk 0:00:14]}  Ke6 {[%clk 0:00:03]} 50. Kh5 {[%clk 0:00:10]}  Ke7 {[%clk 0:00:04]} 51. Kxh6 {[%clk 0:00:10]}  Rh8+ {[%clk 0:00:04]} 52. Kg6 {[%clk 0:00:09]}  Rh1 {[%clk 0:00:03]} 53. Rg8 {[%clk 0:00:07]}  Rf1 {[%clk 0:00:03]} 54. Re8+ {[%clk 0:00:07]}  Kd7 {[%clk 0:00:02]} 55. f8=Q {[%clk 0:00:08]} 1-0


[Site "https://www.chess.com"]

[Event "Titled Tuesday Blitz January 10 Early 2023"]
[White "Melian, Juan Sebastian"]
[Black "Weetik, Vjacheslav"]
[WhiteFideId "3706575"]
[BlackFideId "4153472"]
[WhiteElo "2293"]
[BlackElo "2423"]
[Result "1-0"]
[Round "03"]
[TimeControl "180+2"]
[Date "2023.01.10"]
[WhiteClock "0:00:05"]
[BlackClock "0:00:01"]

1. d4 {[%clk 0:02:53]}  Nf6 {[%clk 0:02:59]} 2. c4 {[%clk 0:02:51]}  g6 {[%clk 0:03:00]} 3. Nc3 {[%clk 0:02:51]}  Bg7 {[%clk 0:03:00]} 4. e4 {[%clk 0:02:51]}  d6 {[%clk 0:03:00]} 5. f3 {[%clk 0:02:52]}  O-O {[%clk 0:03:01]} 6. Be3 {[%clk 0:02:53]}  e5 {[%clk 0:02:58]} 7. Nge2 {[%clk 0:02:53]}  c6 {[%clk 0:02:58]} 8. Qd2 {[%clk 0:02:50]}  Nbd7 {[%clk 0:02:53]} 9. O-O-O {[%clk 0:02:34]}  a6 {[%clk 0:02:42]} 10. d5 {[%clk 0:02:33]}  c5 {[%clk 0:02:35]} 11. Ng3 {[%clk 0:02:15]}  Ne8 {[%clk 0:02:09]} 12. Bd3 {[%clk 0:01:56]}  b5 {[%clk 0:01:58]} 13. Bh6 {[%clk 0:01:37]}  Nb6 {[%clk 0:01:27]} 14. cxb5 {[%clk 0:01:29]}  c4 {[%clk 0:01:26]} 15. Bb1 {[%clk 0:01:19]}  axb5 {[%clk 0:01:22]} 16. Nxb5 {[%clk 0:01:20]}  Bd7 {[%clk 0:01:09]} 17. Nc3 {[%clk 0:01:20]}  Na4 {[%clk 0:01:07]} 18. Bxg7 {[%clk 0:01:08]}  Kxg7 {[%clk 0:01:05]} 19. h4 {[%clk 0:01:08]}  h6 {[%clk 0:00:52]} 20. Rdf1 {[%clk 0:00:51]}  Qb6 {[%clk 0:00:40]} 21. f4 {[%clk 0:00:38]}  Nf6 {[%clk 0:00:27]} 22. h5 {[%clk 0:00:25]}  Ng4 {[%clk 0:00:24]} 23. hxg6 {[%clk 0:00:20]}  fxg6 {[%clk 0:00:19]} 24. f5 {[%clk 0:00:21]}  g5 {[%clk 0:00:09]} 25. Re1 {[%clk 0:00:18]}  Rab8 {[%clk 0:00:04]} 26. Nxa4 {[%clk 0:00:16]}  Bxa4 {[%clk 0:00:05]} 27. Qc3 {[%clk 0:00:16]}  Nf2 {[%clk 0:00:04]} 28. f6+ {[%clk 0:00:12]}  Rxf6 {[%clk 0:00:02]} 29. Nh5+ {[%clk 0:00:12]}  Kf7 {[%clk 0:00:02]} 30. Nxf6 {[%clk 0:00:12]}  Nxh1 {[%clk 0:00:02]} 31. Rxh1 {[%clk 0:00:08]}  Kxf6 {[%clk 0:00:02]} 32. Rxh6+ {[%clk 0:00:07]}  Kg7 {[%clk 0:00:02]} 33. Rh1 {[%clk 0:00:06]}  Qd4 {[%clk 0:00:03]} 34. Bc2 {[%clk 0:00:05]}  Re8 {[%clk 0:00:01]} 35. Qh3 {[%clk 0:00:05]} 1-0


[Site "https://www.chess.com"]

[Event "Titled Tuesday Blitz January 10 Early 2023"]
[White "Lymar, Vladislav"]
[Black "Begmuratov, Khumoyun"]
[WhiteFideId "14162180"]
[BlackFideId "14210207"]
[WhiteElo "2119"]
[BlackElo "2387"]
[Result "1-0"]
[Round "03"]
[TimeControl "180+2"]
[Date "2023.01.10"]
[WhiteClock "0:00:04"]
[BlackClock "0:00:07"]

1. e4 {[%clk 0:03:00]}  e5 {[%clk 0:02:58]} 2. Nf3 {[%clk 0:03:00]}  Nc6 {[%clk 0:02:58]} 3. g3 {[%clk 0:03:00]}  g6 {[%clk 0:02:56]} 4. Bg2 {[%clk 0:02:56]}  Bg7 {[%clk 0:02:56]} 5. O-O {[%clk 0:02:56]}  Nge7 {[%clk 0:02:55]} 6. c3 {[%clk 0:02:56]}  O-O {[%clk 0:02:54]} 7. d4 {[%clk 0:02:54]}  d6 {[%clk 0:02:55]} 8. d5 {[%clk 0:02:50]}  Nb8 {[%clk 0:02:54]} 9. c4 {[%clk 0:02:44]}  a5 {[%clk 0:02:53]} 10. Nc3 {[%clk 0:02:40]}  Na6 {[%clk 0:02:52]} 11. Be3 {[%clk 0:02:34]}  b6 {[%clk 0:02:51]} 12. Qd2 {[%clk 0:02:30]}  Bg4 {[%clk 0:02:48]} 13. Ne1 {[%clk 0:02:27]}  Qd7 {[%clk 0:02:43]} 14. f3 {[%clk 0:02:20]}  Bh3 {[%clk 0:02:43]} 15. Nb5 {[%clk 0:01:47]}  Bxg2 {[%clk 0:02:41]} 16. Kxg2 {[%clk 0:01:44]}  f5 {[%clk 0:02:41]} 17. Nd3 {[%clk 0:01:43]}  Rf7 {[%clk 0:02:20]} 18. exf5 {[%clk 0:01:38]}  gxf5 {[%clk 0:02:15]} 19. f4 {[%clk 0:01:38]}  Ng6 {[%clk 0:02:11]} 20. h4 {[%clk 0:01:18]}  exf4 {[%clk 0:01:38]} 21. Nxf4 {[%clk 0:01:12]}  Ne5 {[%clk 0:01:35]} 22. Qe2 {[%clk 0:00:52]}  Re8 {[%clk 0:01:24]} 23. Ne6 {[%clk 0:00:48]}  c6 {[%clk 0:01:18]} 24. Nbd4 {[%clk 0:00:45]}  cxd5 {[%clk 0:01:09]} 25. cxd5 {[%clk 0:00:35]}  Qb7 {[%clk 0:00:59]} 26. Nf4 {[%clk 0:00:25]}  Nc5 {[%clk 0:00:48]} 27. Qb5 {[%clk 0:00:19]}  Ng4 {[%clk 0:00:46]} 28. Qxe8+ {[%clk 0:00:19]}  Rf8 {[%clk 0:00:46]} 29. Qxf8+ {[%clk 0:00:14]}  Bxf8 {[%clk 0:00:45]} 30. Nxf5 {[%clk 0:00:15]}  Qf7 {[%clk 0:00:39]} 31. Bxc5 {[%clk 0:00:12]}  Qxf5 {[%clk 0:00:33]} 32. Bxb6 {[%clk 0:00:13]}  Ne5 {[%clk 0:00:27]} 33. Rae1 {[%clk 0:00:10]}  Bh6 {[%clk 0:00:26]} 34. Bd4 {[%clk 0:00:10]}  Qc2+ {[%clk 0:00:19]} 35. Rf2 {[%clk 0:00:08]}  Qf5 {[%clk 0:00:08]} 36. Bxe5 {[%clk 0:00:07]}  dxe5 {[%clk 0:00:09]} 37. Ne6 {[%clk 0:00:08]}  Qg4 {[%clk 0:00:05]} 38. Rxe5 {[%clk 0:00:08]}  Qb4 {[%clk 0:00:02]} 39. Ref5 {[%clk 0:00:07]}  Qd6 {[%clk 0:00:01]} 40. Rf8+ {[%clk 0:00:05]}  Bxf8 {[%clk 0:00:01]} 41. Rxf8+ {[%clk 0:00:06]}  Qxf8 {[%clk 0:00:02]} 42. Nxf8 {[%clk 0:00:07]}  Kxf8 {[%clk 0:00:03]} 43. Kf3 {[%clk 0:00:07]}  Ke7 {[%clk 0:00:04]} 44. Ke4 {[%clk 0:00:08]}  Kd6 {[%clk 0:00:05]} 45. Kd4 {[%clk 0:00:08]}  h5 {[%clk 0:00:05]} 46. b3 {[%clk 0:00:07]}  Kd7 {[%clk 0:00:05]} 47. a3 {[%clk 0:00:08]}  Kd6 {[%clk 0:00:04]} 48. b4 {[%clk 0:00:08]}  a4 {[%clk 0:00:05]} 49. b5 {[%clk 0:00:08]}  Kc7 {[%clk 0:00:05]} 50. Kc5 {[%clk 0:00:08]}  Kb7 {[%clk 0:00:05]} 51. d6 {[%clk 0:00:08]}  Kc8 {[%clk 0:00:06]} 52. Kc6 {[%clk 0:00:08]}  Kb8 {[%clk 0:00:06]} 53. d7 {[%clk 0:00:07]}  Ka7 {[%clk 0:00:07]} 54. b6+ {[%clk 0:00:05]}  Ka6 {[%clk 0:00:07]} 55. d8=Q {[%clk 0:00:04]} 1-0


[Site "https://www.chess.com"]

[Event "Titled Tuesday Blitz January 10 Early 2023"]
[White "Goltseva, Ekaterina"]
[Black "Lewtak, Damian"]
[WhiteFideId "24173770"]
[BlackFideId "1141724"]
[WhiteElo "2283"]
[BlackElo "2381"]
[Result "0-1"]
[Round "03"]
[TimeControl "180+2"]
[Date "2023.01.10"]
[WhiteClock "0:00:02"]
[BlackClock "0:00:04"]

1. d4 {[%clk 0:02:52]}  g6 {[%clk 0:02:59]} 2. c4 {[%clk 0:02:42]}  Bg7 {[%clk 0:02:59]} 3. e4 {[%clk 0:02:34]}  d6 {[%clk 0:02:59]} 4. Nc3 {[%clk 0:02:34]}  e5 {[%clk 0:02:59]} 5. Nf3 {[%clk 0:02:33]}  exd4 {[%clk 0:02:54]} 6. Nxd4 {[%clk 0:02:34]}  Nc6 {[%clk 0:02:55]} 7. Be3 {[%clk 0:02:33]}  Nge7 {[%clk 0:02:54]} 8. Qd2 {[%clk 0:02:26]}  O-O {[%clk 0:02:49]} 9. h4 {[%clk 0:02:26]}  f5 {[%clk 0:02:44]} 10. h5 {[%clk 0:02:23]}  f4 {[%clk 0:02:38]} 11. Nxc6 {[%clk 0:02:23]}  fxe3 {[%clk 0:02:21]} 12. Nxe7+ {[%clk 0:02:20]}  Qxe7 {[%clk 0:02:22]} 13. Qxe3 {[%clk 0:02:20]}  g5 {[%clk 0:02:15]} 14. Nd5 {[%clk 0:01:54]}  Qd8 {[%clk 0:02:15]} 15. O-O-O {[%clk 0:01:51]}  c6 {[%clk 0:02:13]} 16. Nc3 {[%clk 0:01:46]}  Be5 {[%clk 0:02:05]} 17. g3 {[%clk 0:01:41]}  Qf6 {[%clk 0:02:04]} 18. Rd2 {[%clk 0:01:34]}  Be6 {[%clk 0:01:47]} 19. h6 {[%clk 0:01:08]}  Kh8 {[%clk 0:01:39]} 20. Rh5 {[%clk 0:01:02]}  Rg8 {[%clk 0:01:39]} 21. Be2 {[%clk 0:00:59]}  b5 {[%clk 0:01:37]} 22. cxb5 {[%clk 0:00:49]}  cxb5 {[%clk 0:01:38]} 23. Nd5 {[%clk 0:00:47]}  Rac8+ {[%clk 0:01:36]} 24. Kb1 {[%clk 0:00:46]}  Bxd5 {[%clk 0:01:36]} 25. exd5 {[%clk 0:00:44]}  b4 {[%clk 0:01:11]} 26. Bd3 {[%clk 0:00:40]}  Rc7 {[%clk 0:01:03]} 27. Qe4 {[%clk 0:00:34]}  Re7 {[%clk 0:00:52]} 28. Qf5 {[%clk 0:00:31]}  Bxb2 {[%clk 0:00:20]} 29. Qxf6+ {[%clk 0:00:05]}  Bxf6 {[%clk 0:00:21]} 30. Rh1 {[%clk 0:00:04]}  Bc3 {[%clk 0:00:16]} 31. Re2 {[%clk 0:00:05]}  Rxe2 {[%clk 0:00:16]} 32. Bxe2 {[%clk 0:00:06]}  Rf8 {[%clk 0:00:16]} 33. Rf1 {[%clk 0:00:05]}  Rf6 {[%clk 0:00:16]} 34. Bg4 {[%clk 0:00:04]}  Rxh6 {[%clk 0:00:15]} 35. Kc2 {[%clk 0:00:03]}  a5 {[%clk 0:00:14]} 36. Kb3 {[%clk 0:00:03]}  Rf6 {[%clk 0:00:12]} 37. a3 {[%clk 0:00:03]}  Rf8 {[%clk 0:00:11]} 38. axb4 {[%clk 0:00:03]}  axb4 {[%clk 0:00:12]} 39. f3 {[%clk 0:00:04]}  Re8 {[%clk 0:00:12]} 40. Be6 {[%clk 0:00:04]}  Ra8 {[%clk 0:00:11]} 41. Rh1 {[%clk 0:00:04]}  Kg7 {[%clk 0:00:10]} 42. Bf5 {[%clk 0:00:03]}  h6 {[%clk 0:00:10]} 43. f4 {[%clk 0:00:01]}  Rf8 {[%clk 0:00:10]} 44. Be6 {[%clk 0:00:01]}  gxf4 {[%clk 0:00:10]} 45. gxf4 {[%clk 0:00:02]}  Rxf4 {[%clk 0:00:10]} 46. Rg1+ {[%clk 0:00:02]}  Kf6 {[%clk 0:00:10]} 47. Rg8 {[%clk 0:00:03]}  h5 {[%clk 0:00:08]} 48. Rf8+ {[%clk 0:00:03]}  Ke5 {[%clk 0:00:08]} 49. Rh8 {[%clk 0:00:01]}  h4 {[%clk 0:00:08]} 50. Rh5+ {[%clk 0:00:02]}  Ke4 {[%clk 0:00:09]} 51. Rh6 {[%clk 0:00:02]}  Ke3 {[%clk 0:00:06]} 52. Bg8 {[%clk 0:00:02]}  Be5 {[%clk 0:00:05]} 53. Be6 {[%clk 0:00:01]}  Kf3 {[%clk 0:00:04]} 54. Rh7 {[%clk 0:00:02]}  Kg3 {[%clk 0:00:04]} 55. Rh5 {[%clk 0:00:02]}  Kg2 {[%clk 0:00:03]} 56. Rh7 {[%clk 0:00:02]}  Rf3+ {[%clk 0:00:03]} 57. Kxb4 {[%clk 0:00:02]}  h3 {[%clk 0:00:04]} 0-1


[Site "https://www.chess.com"]

[Event "Titled Tuesday Blitz January 10 Early 2023"]
[White "Lesbekova, Assel"]
[Black "Koellner, Ruben Gideon"]
[WhiteFideId "13713248"]
[BlackFideId "12993093"]
[WhiteElo "1772"]
[BlackElo "2426"]
[Result "0-1"]
[Round "03"]
[TimeControl "180+2"]
[Date "2023.01.10"]
[WhiteClock "0:00:05"]
[BlackClock "0:00:28"]

1. e4 {[%clk 0:02:56]}  d6 {[%clk 0:02:58]} 2. d4 {[%clk 0:02:50]}  Nf6 {[%clk 0:02:56]} 3. Nc3 {[%clk 0:02:49]}  e5 {[%clk 0:02:57]} 4. dxe5 {[%clk 0:02:45]}  dxe5 {[%clk 0:02:57]} 5. Qxd8+ {[%clk 0:02:45]}  Kxd8 {[%clk 0:02:58]} 6. Bg5 {[%clk 0:02:45]}  Be6 {[%clk 0:02:58]} 7. O-O-O+ {[%clk 0:02:44]}  Nd7 {[%clk 0:02:57]} 8. f3 {[%clk 0:02:40]}  Bd6 {[%clk 0:02:56]} 9. Nb5 {[%clk 0:02:38]}  Ke7 {[%clk 0:02:47]} 10. Ne2 {[%clk 0:02:30]}  a6 {[%clk 0:02:44]} 11. Nxd6 {[%clk 0:02:25]}  cxd6 {[%clk 0:02:45]} 12. Nc3 {[%clk 0:02:25]}  h6 {[%clk 0:02:42]} 13. Bh4 {[%clk 0:02:15]}  g5 {[%clk 0:02:41]} 14. Bf2 {[%clk 0:02:15]}  Rac8 {[%clk 0:02:37]} 15. Nd5+ {[%clk 0:02:05]}  Nxd5 {[%clk 0:02:33]} 16. exd5 {[%clk 0:02:06]}  Bf5 {[%clk 0:02:33]} 17. Bd3 {[%clk 0:02:02]}  Bxd3 {[%clk 0:02:33]} 18. Rxd3 {[%clk 0:02:03]}  f5 {[%clk 0:02:31]} 19. h4 {[%clk 0:02:01]}  g4 {[%clk 0:02:23]} 20. Rb3 {[%clk 0:01:50]}  b5 {[%clk 0:02:08]} 21. a4 {[%clk 0:01:48]}  Nc5 {[%clk 0:01:55]} 22. Bxc5 {[%clk 0:01:44]}  Rxc5 {[%clk 0:01:56]} 23. fxg4 {[%clk 0:01:32]}  fxg4 {[%clk 0:01:55]} 24. axb5 {[%clk 0:01:18]}  axb5 {[%clk 0:01:55]} 25. Rd1 {[%clk 0:01:11]}  Ra8 {[%clk 0:01:51]} 26. Kb1 {[%clk 0:01:05]}  Ra4 {[%clk 0:01:38]} 27. Rdd3 {[%clk 0:00:41]}  e4 {[%clk 0:00:59]} 28. Rd2 {[%clk 0:00:33]}  Kf6 {[%clk 0:00:54]} 29. Rg3 {[%clk 0:00:25]}  h5 {[%clk 0:00:51]} 30. b3 {[%clk 0:00:18]}  Ra8 {[%clk 0:00:43]} 31. Rf2+ {[%clk 0:00:17]}  Ke5 {[%clk 0:00:43]} 32. Rf7 {[%clk 0:00:16]}  Rxd5 {[%clk 0:00:37]} 33. Rc3 {[%clk 0:00:14]}  Rd1+ {[%clk 0:00:32]} 34. Kb2 {[%clk 0:00:13]}  Raa1 {[%clk 0:00:31]} 35. Rc8 {[%clk 0:00:11]}  b4 {[%clk 0:00:29]} 36. Re8+ {[%clk 0:00:09]}  Kd4 {[%clk 0:00:28]} 37. c3+ {[%clk 0:00:05]}  bxc3+ {[%clk 0:00:28]} 0-1


[Site "https://www.chess.com"]

[Event "Titled Tuesday Blitz January 10 Early 2023"]
[White "Deac, Bogdan-Daniel"]
[Black "Tania, Sachdev"]
[WhiteFideId "1226380"]
[BlackFideId "5007844"]
[WhiteElo "2700"]
[BlackElo "2389"]
[Result "1-0"]
[Round "03"]
[TimeControl "180+2"]
[Date "2023.01.10"]
[WhiteClock "0:00:07"]
[BlackClock "0:00:02"]

1. b3 {[%clk 0:03:00]}  d5 {[%clk 0:02:57]} 2. Bb2 {[%clk 0:03:00]}  Nf6 {[%clk 0:02:58]} 3. e3 {[%clk 0:03:01]}  c6 {[%clk 0:02:58]} 4. Nf3 {[%clk 0:02:57]}  Bf5 {[%clk 0:02:57]} 5. Nh4 {[%clk 0:02:57]}  Bg6 {[%clk 0:02:47]} 6. Nxg6 {[%clk 0:02:56]}  hxg6 {[%clk 0:02:47]} 7. g3 {[%clk 0:02:56]}  e6 {[%clk 0:02:45]} 8. Bg2 {[%clk 0:02:56]}  Nbd7 {[%clk 0:02:45]} 9. d3 {[%clk 0:02:56]}  Bd6 {[%clk 0:02:45]} 10. Nd2 {[%clk 0:02:56]}  Qe7 {[%clk 0:02:45]} 11. a3 {[%clk 0:02:56]}  O-O-O {[%clk 0:02:27]} 12. Qe2 {[%clk 0:02:55]}  e5 {[%clk 0:02:26]} 13. b4 {[%clk 0:02:53]}  Kb8 {[%clk 0:02:24]} 14. Nb3 {[%clk 0:02:36]}  Nb6 {[%clk 0:02:16]} 15. Rc1 {[%clk 0:02:23]}  Na4 {[%clk 0:02:15]} 16. Ba1 {[%clk 0:02:23]}  e4 {[%clk 0:02:05]} 17. Bd4 {[%clk 0:02:14]}  Be5 {[%clk 0:01:56]} 18. c3 {[%clk 0:02:06]}  exd3 {[%clk 0:01:36]} 19. Qxd3 {[%clk 0:02:05]}  Ne4 {[%clk 0:01:36]} 20. Na5 {[%clk 0:01:27]}  Nd6 {[%clk 0:01:07]} 21. O-O {[%clk 0:01:20]}  Nb2 {[%clk 0:00:44]} 22. Qe2 {[%clk 0:01:00]}  Nbc4 {[%clk 0:00:44]} 23. Nxc4 {[%clk 0:00:59]}  Nxc4 {[%clk 0:00:45]} 24. e4 {[%clk 0:01:00]}  Bxd4 {[%clk 0:00:39]} 25. cxd4 {[%clk 0:00:59]}  Nxa3 {[%clk 0:00:39]} 26. Qb2 {[%clk 0:00:30]}  Nb5 {[%clk 0:00:39]} 27. exd5 {[%clk 0:00:28]}  cxd5 {[%clk 0:00:32]} 28. Rc5 {[%clk 0:00:29]}  Nc7 {[%clk 0:00:31]} 29. Ra1 {[%clk 0:00:23]}  a6 {[%clk 0:00:18]} 30. b5 {[%clk 0:00:20]}  Nxb5 {[%clk 0:00:18]} 31. Bf1 {[%clk 0:00:20]}  Rc8 {[%clk 0:00:18]} 32. Rxd5 {[%clk 0:00:19]}  Nc7 {[%clk 0:00:17]} 33. Re5 {[%clk 0:00:14]}  Qd6 {[%clk 0:00:16]} 34. Rb1 {[%clk 0:00:14]}  Nb5 {[%clk 0:00:14]} 35. Bxb5 {[%clk 0:00:13]}  axb5 {[%clk 0:00:14]} 36. Rxb5 {[%clk 0:00:14]}  Kc7 {[%clk 0:00:14]} 37. Rb6 {[%clk 0:00:11]}  Qd5 {[%clk 0:00:09]} 38. Rxb7+ {[%clk 0:00:11]}  Kd8 {[%clk 0:00:10]} 39. Qb4 {[%clk 0:00:08]}  Rc7 {[%clk 0:00:03]} 40. Rb8+ {[%clk 0:00:07]}  Rc8 {[%clk 0:00:02]} 41. Rxc8+ {[%clk 0:00:07]} 1-0


[Site "https://www.chess.com"]